bitfinex/quotes_BTCUSD_20251117
["timestamp","ask_amount","ask_price","bid_price","bid_amount"]
[1763406780296,0.36641874,92690.0,92650.0,0.0004]
[1763406780507,0.04341874,92677.0,92650.0,0.0004]
[1763406780674,2.57665206,92667.0,92666.0,27.27361284]
[1763406780876,2.60690714,92667.0,92666.0,27.27361284]
[1763406781102,2.70575733,92667.0,92666.0,27.27361284]
[1763406781303,2.80942671,92667.0,92666.0,27.25316284]
[1763406781653,2.8108712,92667.0,92666.0,25.56783521]
[1763406781857,2.80942671,92667.0,92666.0,25.56783521]
[1763406782791,2.71140585,92667.0,92666.0,25.17505767]
[1763406782992,2.71140585,92667.0,92666.0,24.44966715]
[1763406782993,2.76140585,92667.0,92666.0,24.44966715]
[1763406783194,2.71440585,92667.0,92666.0,24.44966715]
[1763406783396,2.71540585,92667.0,92666.0,24.44966715]
[1763406783778,2.71140585,92667.0,92666.0,24.44966715]
[1763406783993,2.66531692,92667.0,92666.0,24.44966715]
[1763406784241,2.3377084,92667.0,92666.0,24.44966715]
[1763406784667,2.3357084,92667.0,92666.0,24.44966715]
[1763406784806,2.70212714,92667.0,92666.0,24.44966715]
[1763406785007,2.70312714,92667.0,92666.0,24.44966715]
[1763406785210,2.53051379,92667.0,92666.0,24.44966715]
[1763406785416,2.53018877,92667.0,92666.0,24.44966715]
[1763406785824,2.53218877,92667.0,92666.0,24.44966715]
[1763406786026,2.52918877,92667.0,92666.0,23.72427663]
[1763406786497,2.58218877,92667.0,92666.0,23.43962223]
[1763406786675,2.60219022,92667.0,92666.0,23.43962223]
[1763406786872,2.53018877,92667.0,92666.0,23.43962223]
[1763406787078,2.56096485,92667.0,92666.0,23.43962223]
[1763406787287,2.53218877,92667.0,92666.0,23.43962223]
[1763406787487,2.53418877,92667.0,92666.0,23.43962223]
[1763406787928,2.53218877,92667.0,92666.0,23.43962223]
[1763406788117,2.53418877,92667.0,92666.0,23.43962223]
[1763406788344,2.53118877,92667.0,92666.0,23.43962223]
[1763406788580,2.53518877,92667.0,92666.0,23.43962223]
[1763406788835,2.53118877,92667.0,92666.0,23.43962223]
[1763406789380,2.53418877,92667.0,92666.0,23.43962223]
[1763406789720,2.37399877,92667.0,92666.0,23.43962223]
[1763406789935,2.10108505,92667.0,92666.0,23.43962223]
[1763406790782,2.00290505,92667.0,92666.0,23.43962223]
[1763406790993,1.99281757,92667.0,92666.0,23.43962223]
[1763406791200,2.41997583,92667.0,92666.0,23.43962223]
[1763406791427,2.46339457,92667.0,92666.0,23.43962223]
[1763406791640,2.46539457,92667.0,92666.0,23.43962223]
[1763406791850,2.46339457,92667.0,92666.0,23.43962223]
[1763406792052,2.46539457,92667.0,92666.0,23.43962223]
[1763406792269,2.46339457,92667.0,92666.0,23.43962223]
[1763406792693,2.46539457,92667.0,92666.0,23.43962223]
[1763406792898,2.46439457,92667.0,92666.0,23.43962223]
[1763406793100,2.49957712,92667.0,92666.0,23.43962223]
[1763406793302,2.50057712,92667.0,92666.0,23.43962223]
[1763406793716,2.49957712,92667.0,92666.0,23.43962223]
[1763406793932,2.52184984,92667.0,92666.0,23.43962223]
[1763406794133,2.52284984,92667.0,92666.0,23.43962223]
[1763406794539,2.52184984,92667.0,92666.0,23.43962223]
[1763406794745,2.51984984,92667.0,92666.0,23.43962223]
[1763406794949,2.52184984,92667.0,92666.0,23.42465871]
[1763406795186,2.52384984,92667.0,92666.0,23.42465871]
[1763406795385,2.52184984,92667.0,92666.0,23.42465871]
[1763406795597,2.46433418,92667.0,92666.0,23.42465871]
[1763406796013,2.46233418,92667.0,92666.0,23.42465871]
[1763406796419,2.44206146,92667.0,92666.0,23.42465871]
[1763406796632,2.39596571,92667.0,92666.0,23.42465871]
[1763406797011,1.97678571,92667.0,92666.0,23.42465871]
[1763406797400,2.43638445,92667.0,92666.0,23.42465871]
[1763406797782,2.43738445,92667.0,92666.0,23.42465871]
[1763406798000,2.29578571,92667.0,92666.0,23.42465871]
[1763406798208,2.29778571,92667.0,92666.0,23.42465871]
[1763406798925,1.97478571,92667.0,92666.0,23.42465871]
[1763406799217,1.97178571,92667.0,92666.0,23.42465871]
[1763406799410,1.97478571,92667.0,92666.0,23.52256871]
[1763406799622,1.96480745,92667.0,92666.0,23.62623809]
[1763406799843,0.05467314,92667.0,92666.0,23.52256871]
[1763406800046,0.0221676,92667.0,92666.0,23.52256871]
[1763406800193,0.0231676,92667.0,92666.0,23.52256871]
[1763406800568,0.0211676,92667.0,92666.0,23.52256871]
[1763406800824,2.0,92696.0,92667.0,0.09791]
[1763406801046,1.99730826,92679.0,92678.0,0.06621]
[1763406801227,1.99730826,92689.0,92678.0,0.06621]
[1763406801451,1.99730826,92687.0,92678.0,0.06621]
[1763406801679,0.01001399,92686.0,92678.0,0.06621]
[1763406801810,1.99730826,92684.0,92678.0,0.06621]
[1763406802012,1.81777743,92682.0,92667.0,0.09691]
[1763406802217,2.0,92687.0,92667.0,0.09691]
[1763406802441,2.0,92679.0,92666.0,23.42465871]
[1763406802886,0.323,92676.0,92666.0,23.42465871]
[1763406803081,0.323,92672.0,92666.0,23.42465871]
[1763406803280,2.0,92669.0,92666.0,23.42465871]
[1763406803482,2.323,92667.0,92666.0,23.42465871]
[1763406804108,2.35549297,92667.0,92666.0,23.42465871]
[1763406804688,2.35560665,92667.0,92666.0,23.42465871]
[1763406804889,2.47130665,92667.0,92666.0,23.42465871]
[1763406805365,2.35660665,92667.0,92666.0,23.42465871]
[1763406806556,2.47230665,92667.0,92666.0,23.42465871]
[1763406806742,2.50108273,92667.0,92666.0,23.42465871]
[1763406807094,2.41602665,92667.0,92666.0,23.42465871]
[1763406807283,2.44480273,92667.0,92666.0,23.42465871]
[1763406807502,2.44680273,92667.0,92666.0,23.42465871]
[1763406807687,2.44580273,92667.0,92666.0,23.42465871]
[1763406807874,2.50208273,92667.0,92666.0,23.42465871]
[1763406808207,2.51672539,92667.0,92666.0,23.42465871]
[1763406808416,2.51940483,92667.0,92666.0,23.41165015]
[1763406808579,2.51672539,92667.0,92666.0,23.41165015]
[1763406808789,2.51672539,92667.0,92666.0,23.3880689]
[1763406809006,2.51572539,92667.0,92666.0,23.3880689]
[1763406809360,2.51940483,92667.0,92666.0,23.3880689]
[1763406809559,2.51672539,92667.0,92666.0,23.3880689]
[1763406809753,2.51840483,92667.0,92666.0,23.3880689]
[1763406810001,2.51472539,92667.0,92666.0,23.3880689]
[1763406810213,2.51672539,92667.0,92666.0,23.3880689]
[1763406810446,2.52140483,92667.0,92666.0,23.3880689]
[1763406810641,2.51940483,92667.0,92666.0,23.3880689]
[1763406810849,2.52240483,92667.0,92666.0,23.3880689]
[1763406811260,2.59663784,92667.0,92666.0,23.3880689]
[1763406811455,2.52040483,92667.0,92666.0,23.3880689]
[1763406811679,2.51772539,92667.0,92666.0,23.3880689]
[1763406811881,2.51972539,92667.0,92666.0,23.3880689]
[1763406812079,2.51972539,92667.0,92666.0,23.37044892]
[1763406812281,2.51772539,92667.0,92666.0,23.37044892]
[1763406812457,2.52041,92667.0,92666.0,23.37044892]
[1763406812630,2.5398585,92667.0,92666.0,23.37044892]
[1763406813070,2.5378585,92667.0,92666.0,23.32933579]
[1763406813229,2.5348585,92667.0,92666.0,23.32933579]
[1763406813445,2.5368585,92667.0,92666.0,23.32933579]
[1763406813653,2.5398585,92667.0,92666.0,23.32933579]
[1763406814294,2.53954311,92667.0,92666.0,23.32933579]
[1763406814500,2.5348585,92667.0,92666.0,23.28664179]
[1763406814675,2.5378585,92667.0,92666.0,23.28664179]
[1763406814890,2.5398585,92667.0,92666.0,23.28664179]
[1763406815673,2.5398585,92667.0,92666.0,23.18827674]
[1763406816639,2.5398585,92667.0,92666.0,23.16800091]
[1763406817433,2.5398585,92667.0,92666.0,23.14331181]
[1763406817655,2.5398585,92667.0,92666.0,23.02413597]
[1763406817911,2.54254476,92667.0,92666.0,22.20838894]
[1763406818101,2.59254476,92667.0,92666.0,22.16125794]
[1763406818304,0.59254476,92667.0,92666.0,18.28587506]
[1763406818505,2.59254476,92667.0,92666.0,17.89648094]
[1763406818747,2.66981947,92667.0,92666.0,17.89648094]
[1763406818950,2.5898585,92667.0,92666.0,17.89648094]
[1763406819159,2.5878585,92667.0,92666.0,17.89648094]
[1763406819585,2.5868585,92667.0,92666.0,17.17109042]
[1763406819799,2.69354476,92667.0,92666.0,17.17109042]
[1763406819973,2.5408585,92667.0,92666.0,17.17109042]
[1763406820119,2.5368585,92667.0,92666.0,17.17109042]
[1763406820360,2.5408585,92667.0,92666.0,17.17109042]
[1763406820595,2.53754476,92667.0,92666.0,17.17109042]
[1763406820801,2.5348585,92667.0,92666.0,17.17109042]
[1763406821024,2.5418585,92667.0,92666.0,17.17109042]
[1763406821243,2.2148585,92667.0,92666.0,17.17109042]
[1763406821470,2.5848585,92667.0,92666.0,17.17109042]
[1763406821698,2.5868585,92667.0,92666.0,17.17109042]
[1763406821908,2.58954529,92667.0,92666.0,16.61018124]
[1763406822131,2.58754529,92667.0,92666.0,15.23986914]
[1763406822339,2.58754529,92667.0,92666.0,13.95356944]
[1763406822558,2.59354529,92667.0,92666.0,13.95356944]
[1763406822992,2.64744515,92667.0,92666.0,13.39265986]
[1763406823204,2.59354529,92667.0,92666.0,13.39265986]
[1763406823410,2.65143665,92667.0,92666.0,13.39265986]
[1763406823628,2.64943665,92667.0,92666.0,13.39265986]
[1763406824048,2.59054529,92667.0,92666.0,13.39265986]
[1763406824335,2.65243414,92667.0,92666.0,13.39265986]
[1763406824550,2.64943414,92667.0,92666.0,13.39265986]
[1763406824765,2.65243414,92667.0,92666.0,13.39265986]
[1763406824970,2.59454529,92667.0,92666.0,12.83175068]
[1763406825190,2.59454529,92667.0,92666.0,12.41333604]
[1763406825407,2.59454529,92667.0,92666.0,12.38085373]
[1763406825657,2.59154529,92667.0,92666.0,12.38085373]
[1763406825885,2.5348585,92667.0,92666.0,12.38085373]
[1763406826520,2.5378585,92667.0,92666.0,12.38085373]
[1763406826980,2.5398585,92667.0,92666.0,12.38085373]
[1763406827196,2.33967123,92667.0,92666.0,12.38085373]
[1763406827431,2.37018381,92667.0,92666.0,12.38085373]
[1763406827649,2.42487077,92667.0,92666.0,11.87362573]
[1763406828104,2.42218381,92667.0,92666.0,11.87362573]
[1763406828329,2.37018381,92667.0,92666.0,11.87362573]
[1763406828552,2.36718381,92667.0,92666.0,11.87362573]
[1763406828775,2.36918381,92667.0,92666.0,11.87362573]
[1763406829007,2.37318381,92667.0,92666.0,11.87362573]
[1763406829235,2.08960255,92667.0,92666.0,11.87362573]
[1763406829485,2.04918381,92667.0,92666.0,11.87362573]
[1763406829931,2.04718381,92667.0,92666.0,11.87362573]
[1763406830148,2.37218381,92667.0,92666.0,11.87362573]
[1763406830360,2.09260255,92667.0,92666.0,11.87362573]
[1763406830598,2.04718381,92667.0,92666.0,11.87362573]
[1763406831009,2.37218381,92667.0,92666.0,11.87362573]
[1763406831238,2.41560255,92667.0,92666.0,11.87362573]
[1763406831462,2.41360255,92667.0,92666.0,11.87362573]
[1763406831695,2.41060255,92667.0,92666.0,11.87362573]
[1763406831891,2.41260255,92667.0,92666.0,11.87362573]
[1763406832122,2.41560255,92667.0,92666.0,11.87362573]
[1763406832314,2.45119343,92667.0,92666.0,11.87362573]
[1763406832520,2.41260255,92667.0,92666.0,11.87362573]
[1763406832813,2.41560255,92667.0,92666.0,11.87362573]
[1763406833002,2.41060255,92667.0,92666.0,11.87362573]
[1763406833217,2.41260255,92667.0,92666.0,11.87362573]
[1763406833423,2.41360255,92667.0,92666.0,11.87362573]
[1763406833622,2.41160255,92667.0,92666.0,11.87362573]
[1763406833830,2.41060255,92667.0,92666.0,11.87362573]
[1763406834241,2.41260255,92667.0,92666.0,11.87362573]
[1763406834952,2.47134634,92667.0,92666.0,11.87362573]
[1763406835152,2.41628957,92667.0,92666.0,11.87362573]
[1763406835974,2.41328957,92667.0,92666.0,11.87362573]
[1763406836383,2.41360255,92667.0,92666.0,11.87362573]
[1763406836584,2.41060255,92667.0,92666.0,11.87362573]
[1763406836794,2.21305999,92667.0,92666.0,11.87362573]
[1763406837033,2.21805999,92667.0,92666.0,11.87362573]
[1763406837245,3.59005999,92667.0,92666.0,11.87362573]
[1763406837451,3.54664125,92667.0,92666.0,11.87362573]
[1763406837658,3.54464125,92667.0,92666.0,11.87362573]
[1763406837826,3.54664125,92667.0,92666.0,11.87362573]
[1763406838158,3.54364125,92667.0,92666.0,11.87362573]
[1763406838363,3.54664125,92667.0,92666.0,11.87362573]
[1763406838904,3.54664125,92667.0,92666.0,11.87230573]
[1763406839104,3.59005999,92667.0,92666.0,11.87230573]
[1763406840806,3.64274703,92667.0,92666.0,11.87230573]
[1763406841224,3.51156847,92667.0,92666.0,11.87230573]
[1763406841555,3.50856847,92667.0,92666.0,11.87230573]
[1763406841812,3.45656847,92667.0,92666.0,11.87230573]
[1763406842038,3.45956847,92667.0,92666.0,11.86200727]
[1763406842805,3.43203151,92667.0,92666.0,11.85886047]
[1763406843048,3.43403151,92667.0,92666.0,11.49012975]
[1763406843220,3.43403151,92667.0,92666.0,11.44347975]
[1763406843603,3.43403151,92667.0,92666.0,11.34559575]
[1763406843800,3.43968003,92667.0,92666.0,10.41476623]
[1763406844020,3.43968003,92667.0,92666.0,10.38900623]
[1763406844241,3.43403151,92667.0,92666.0,10.33316923]
[1763406844391,3.29467236,92667.0,92666.0,8.24995223]
[1763406844996,3.30032088,92667.0,92666.0,8.24995223]
[1763406845224,3.25722788,92667.0,92666.0,7.48146871]
[1763406845437,3.31839794,92667.0,92666.0,7.46516771]
[1763406845640,3.28549694,92667.0,92666.0,7.43226671]
[1763406845840,3.20796659,92667.0,92666.0,7.43226671]
[1763406846043,3.20596659,92667.0,92666.0,7.43226671]
[1763406846361,3.15796659,92667.0,92666.0,6.99556387]
[1763406846567,3.15796659,92667.0,92666.0,6.9630817]
[1763406846568,3.15527955,92667.0,92666.0,6.9630817]
[1763406846765,2.83227955,92667.0,92666.0,6.9630817]
[1763406846980,2.78886081,92667.0,92666.0,6.9630817]
[1763406847422,3.15027955,92667.0,92666.0,6.9630817]
[1763406847619,3.15627955,92667.0,92666.0,6.9630817]
[1763406848033,3.15227955,92667.0,92666.0,6.9630817]
[1763406848275,3.11186081,92667.0,92666.0,6.9630817]
[1763406848487,2.83227955,92667.0,92666.0,6.9630817]
[1763406848695,2.78886081,92667.0,92666.0,6.9630817]
[1763406848896,2.75640752,92667.0,92666.0,6.9630817]
[1763406849320,3.07940752,92667.0,92666.0,6.9630817]
[1763406849570,3.07740752,92667.0,92666.0,6.9630817]
[1763406849799,3.07940752,92667.0,92666.0,6.9630817]
[1763406850216,3.07440752,92667.0,92666.0,6.9630817]
[1763406850618,3.07740752,92667.0,92666.0,6.9630817]
[1763406850848,3.07540752,92667.0,92666.0,6.9630817]
[1763406851189,3.07740752,92667.0,92666.0,6.9630817]
[1763406851387,3.07540752,92667.0,92666.0,6.9630817]
[1763406851815,3.07740752,92667.0,92666.0,6.9630817]
[1763406852103,3.07440752,92667.0,92666.0,6.9630817]
[1763406852318,3.07540752,92667.0,92666.0,6.9630817]
[1763406852764,3.07440752,92667.0,92666.0,6.9630817]
[1763406853135,3.07540752,92667.0,92666.0,6.9630817]
[1763406853374,3.07740752,92667.0,92666.0,6.9630817]
[1763406853528,2.86968784,92667.0,92666.0,6.9630817]
[1763406853730,2.86768784,92667.0,92666.0,6.9630817]
[1763406853936,2.86968784,92667.0,92666.0,6.9630817]
[1763406854640,2.9084653,92667.0,92666.0,6.9630817]
[1763406855267,2.86968784,92667.0,92666.0,6.9630817]
[1763406855466,2.91310658,92667.0,92666.0,6.9630817]
[1763406855674,2.96210658,92667.0,92666.0,6.9630817]
[1763406855905,2.96479362,92667.0,92666.0,6.9630817]
[1763406856121,2.91310658,92667.0,92666.0,6.9630817]
[1763406856319,2.91110658,92667.0,92666.0,6.9630817]
[1763406856558,2.91010658,92667.0,92666.0,6.9630817]
[1763406856818,2.91210658,92667.0,92666.0,6.9630817]
[1763406857213,2.91510658,92667.0,92666.0,6.9630817]
[1763406857537,2.91210658,92667.0,92666.0,6.9630817]
[1763406857732,2.91510658,92667.0,92666.0,6.9630817]
[1763406858128,2.91310658,92667.0,92666.0,6.9630817]
[1763406858335,2.91510658,92667.0,92666.0,6.9630817]
[1763406858974,2.91310658,92667.0,92666.0,6.9630817]
[1763406859173,2.91510658,92667.0,92666.0,6.9630817]
[1763406859404,2.91210658,92667.0,92666.0,6.9630817]
[1763406859625,2.91510658,92667.0,92666.0,6.9630817]
[1763406860999,2.91310658,92667.0,92666.0,6.9630817]
[1763406861655,2.91410658,92667.0,92666.0,6.9630817]
[1763406861809,2.91310658,92667.0,92666.0,6.9630817]
[1763406862194,2.91210658,92667.0,92666.0,6.9630817]
[1763406862643,2.91310658,92667.0,92666.0,6.9630817]
[1763406863049,2.91510658,92667.0,92666.0,6.9630817]
[1763406863506,2.91779362,92667.0,92666.0,6.9630817]
[1763406863792,2.96377362,92667.0,92666.0,6.9630817]
[1763406864022,2.96423362,92667.0,92666.0,6.9630817]
[1763406864761,2.96423362,92667.0,92666.0,6.96388389]
[1763406865078,2.96223362,92667.0,92666.0,6.96388389]
[1763406865279,2.96123362,92667.0,92666.0,6.96388389]
[1763406865485,3.05766048,92667.0,92666.0,6.96388389]
[1763406865855,3.06066048,92667.0,92666.0,6.96388389]
[1763406866427,2.99674317,92667.0,92666.0,6.96388389]
[1763406868078,2.99405613,92667.0,92666.0,6.96388389]
[1763406869056,2.94863739,92667.0,92666.0,6.96388389]
[1763406869269,2.64583616,92667.0,92666.0,6.96388389]
[1763406869589,2.96583616,92667.0,92666.0,6.96388389]
[1763406869737,2.96883616,92667.0,92666.0,6.96388389]
[1763406870140,2.96583616,92667.0,92666.0,6.96388389]
[1763406870352,2.96983616,92667.0,92666.0,6.96388389]
[1763406870562,3.0132549,92667.0,92666.0,6.96388389]
[1763406871020,3.0112549,92667.0,92666.0,6.96388389]
[1763406871236,3.06494194,92667.0,92666.0,6.80991217]
[1763406871425,3.0622549,92667.0,92666.0,6.80991217]
[1763406871590,3.06394194,92667.0,92666.0,6.80991217]
[1763406872467,3.06594194,92667.0,92666.0,6.80991217]
[1763406872692,3.0612549,92667.0,92666.0,6.80991217]
[1763406872895,3.06694194,92667.0,92666.0,6.80991217]
[1763406873105,3.06394194,92667.0,92666.0,6.80991217]
[1763406873320,3.06394194,92667.0,92666.0,4.93741817]
[1763406873523,3.06794194,92667.0,92666.0,4.06514817]
[1763406873699,3.06594194,92667.0,92666.0,4.06514817]
[1763406873899,3.0632549,92667.0,92666.0,4.06514817]
[1763406874151,3.06794194,92667.0,92666.0,4.06514817]
[1763406874744,3.16794194,92667.0,92666.0,4.06514817]
[1763406874956,3.16594194,92667.0,92666.0,4.06514817]
[1763406875406,3.1662549,92667.0,92666.0,4.06514817]
[1763406875598,3.1622549,92667.0,92666.0,4.06514817]
[1763406876001,3.1662549,92667.0,92666.0,4.06514817]
[1763406876179,3.1622549,92667.0,92666.0,4.06514817]
[1763406876537,3.1662549,92667.0,92666.0,4.06514817]
[1763406877765,3.16894194,92667.0,92666.0,4.06514817]
[1763406878010,3.1662549,92667.0,92666.0,4.06514817]
[1763406879160,3.16894194,92667.0,92666.0,4.06514817]
[1763406880326,3.1662549,92667.0,92666.0,4.06514817]
[1763406880756,3.1662549,92667.0,92666.0,3.96678312]
[1763406881386,3.1162549,92667.0,92666.0,3.96678312]
[1763406881812,3.0162549,92667.0,92666.0,3.96678312]
[1763406882840,3.0122549,92667.0,92666.0,3.96678312]
[1763406883252,3.0132549,92667.0,92666.0,3.86841807]
[1763406883668,3.0162549,92667.0,92666.0,3.86841807]
[1763406885208,3.0162549,92667.0,92666.0,3.77005302]
[1763406886660,3.0162549,92667.0,92666.0,3.76503902]
[1763406887288,3.0162549,92667.0,92666.0,3.66667397]
[1763406889199,3.0662549,92667.0,92666.0,3.58530416]
[1763406889356,3.0162549,92667.0,92666.0,3.58530416]
[1763406892782,3.0162549,92667.0,92666.0,3.57729253]
[1763406892985,3.0662549,92667.0,92666.0,3.51633253]
[1763406893203,3.0162549,92667.0,92666.0,3.51633253]
[1763406893623,3.0662549,92667.0,92666.0,3.51633253]
[1763406893733,3.0632549,92667.0,92666.0,3.51633253]
[1763406893936,3.0622549,92667.0,92666.0,3.51633253]
[1763406894355,3.0662549,92667.0,92666.0,3.51633253]
[1763406894566,3.1622549,92667.0,92666.0,3.51633253]
[1763406895151,3.1592549,92667.0,92666.0,3.51633253]
[1763406895608,3.1622549,92667.0,92666.0,3.51633253]
[1763406895909,3.16627492,92667.0,92666.0,3.51633253]
[1763406899288,3.26270178,92667.0,92666.0,3.51633253]
[1763406900336,3.21343879,92667.0,92666.0,3.51633253]
[1763406900535,2.97285618,92667.0,92666.0,3.51633253]
[1763406900933,3.07003432,92667.0,92666.0,3.51633253]
[1763406901136,2.97285618,92667.0,92666.0,3.51633253]
[1763406901399,2.83714094,92667.0,92666.0,3.51633253]
[1763406901569,2.93431908,92667.0,92666.0,3.51633253]
[1763406901763,2.93731908,92667.0,92666.0,3.51633253]
[1763406901928,2.93331908,92667.0,92666.0,3.51633253]
[1763406902335,2.93731908,92667.0,92666.0,3.51633253]
[1763406902991,2.93731908,92667.0,92666.0,3.356927]
[1763406903211,2.84014094,92667.0,92666.0,3.356927]
[1763406904585,2.89014094,92667.0,92666.0,3.33930488]
[1763406906057,2.69944772,92667.0,92666.0,3.33930488]
[1763406906276,2.69944772,92667.0,92666.0,2.93938488]
[1763406906678,2.69946389,92667.0,92666.0,2.92016488]
[1763406906887,2.79946389,92667.0,92666.0,2.83755488]
[1763406907295,2.70604515,92667.0,92666.0,2.81810788]
[1763406907493,2.60604515,92667.0,92666.0,2.81810788]
[1763406907909,2.60304515,92667.0,92666.0,2.81810788]
[1763406908111,2.64646389,92667.0,92666.0,2.81810788]
[1763406908272,2.64946389,92667.0,92666.0,2.81810788]
[1763406908470,2.64546389,92667.0,92666.0,2.81810788]
[1763406908675,2.64246389,92667.0,92666.0,2.81810788]
[1763406909111,2.69846389,92667.0,92666.0,2.81810788]
[1763406909376,2.69446389,92667.0,92666.0,0.98483448]
[1763406909574,2.64446389,92667.0,92666.0,0.98483448]
[1763406909855,2.69846389,92667.0,92666.0,0.92328233]
[1763406910088,2.69246389,92667.0,92666.0,0.92328233]
[1763406910258,2.69646389,92667.0,92666.0,0.92328233]
[1763406911225,2.69946389,92667.0,92666.0,0.82491729]
[1763406912259,2.69946389,92667.0,92666.0,0.80572412]
[1763406912460,2.64946389,92667.0,92666.0,0.80572412]
[1763406912620,2.69946389,92667.0,92666.0,0.80572412]
[1763406913229,2.77723559,92667.0,92666.0,0.70735908]
[1763406913454,2.70215093,92667.0,92666.0,0.70735908]
[1763406913656,2.70215093,92667.0,92666.0,0.68380938]
[1763406913858,2.70215093,92667.0,92666.0,8e-08]
[1763406914076,2.69946389,92667.0,92666.0,8e-08]
[1763406914474,2.70215093,92667.0,92666.0,8e-08]
[1763406916388,2.92907874,92661.0,92660.0,0.00039655]
[1763406916555,2.44932968,92661.0,92660.0,0.00039655]
[1763406916782,2.50640672,92661.0,92660.0,0.00039655]
[1763406917209,2.50805476,92661.0,92660.0,0.00039655]
[1763406917594,2.5107418,92661.0,92660.0,0.00039655]
[1763406917794,2.5137418,92661.0,92660.0,0.00039655]
[1763406917990,2.51105476,92661.0,92660.0,0.00039655]
[1763406918335,2.51205476,92661.0,92660.0,0.00039655]
[1763406918535,2.50805476,92661.0,92660.0,0.00039655]
[1763406918770,2.51005476,92661.0,92660.0,0.00039655]
[1763406919106,2.51305476,92661.0,92660.0,0.00039655]
[1763406919300,2.59083153,92661.0,92660.0,0.00039655]
[1763406919682,2.58783153,92661.0,92660.0,0.00039655]
[1763406920088,2.58983153,92661.0,92660.0,0.00039655]
[1763406920293,0.36641874,92657.0,92650.0,0.0004]
[1763406920473,2.40075874,92651.0,92650.0,0.0004]
[1763406920673,2.42100968,92651.0,92650.0,0.0004]
[1763406920875,2.46996968,92651.0,92650.0,0.0004]
[1763406921464,2.47265672,92651.0,92650.0,0.0004]
[1763406921660,2.47730482,92651.0,92650.0,0.0004]
[1763406922288,2.47730959,92651.0,92650.0,0.0004]
[1763406922684,2.47730959,92651.0,92650.0,0.00085857]
[1763406923145,2.47930959,92651.0,92650.0,0.00085857]
[1763406925458,2.52930959,92651.0,92650.0,0.00085857]
[1763406925684,2.47930959,92651.0,92650.0,0.00085857]
[1763406926307,0.36641874,92648.0,92641.0,0.0013871]
[1763406926431,2.41543874,92642.0,92641.0,0.0013871]
[1763406926626,2.43569445,92642.0,92641.0,0.0013871]
[1763406926841,2.43666445,92642.0,92641.0,0.0013871]
[1763406927044,2.43566045,92642.0,92641.0,0.0013871]
[1763406927905,2.43866045,92642.0,92641.0,0.0013871]
[1763406928142,2.47117427,92642.0,92641.0,0.0013871]
[1763406928320,2.47117427,92642.0,92639.0,0.2992986]
[1763406928620,2.51477971,92640.0,92639.0,0.2992986]
[1763406928858,2.43781571,92640.0,92639.0,0.2992986]
[1763406929064,2.11513571,92640.0,92639.0,0.2992986]
[1763406929266,2.11481571,92640.0,92639.0,0.2992986]
[1763406929693,2.43813571,92640.0,92639.0,0.2992986]
[1763406930227,2.43913571,92640.0,92639.0,0.2992986]
[1763406930842,2.44113571,92640.0,92639.0,0.2992986]
[1763406931046,2.44013571,92640.0,92639.0,0.2992986]
[1763406931244,2.43813571,92640.0,92639.0,0.2992986]
[1763406931505,2.44013571,92640.0,92639.0,0.2992986]
[1763406931661,2.43813571,92640.0,92639.0,0.2992986]
[1763406932052,2.44013571,92640.0,92639.0,0.2992986]
[1763406932504,2.44013571,92640.0,92639.0,0.29961393]
[1763406932869,2.44113571,92640.0,92639.0,0.29961393]
[1763406933407,2.24359337,92640.0,92639.0,0.29961393]
[1763406933622,2.24459337,92640.0,92639.0,0.29961393]
[1763406934573,2.24359337,92640.0,92639.0,0.29961393]
[1763406934836,2.24259337,92640.0,92639.0,0.29961393]
[1763406935278,2.24459337,92640.0,92639.0,0.29961393]
[1763406936924,2.24359337,92640.0,92639.0,0.29961393]
[1763406937307,2.24559337,92640.0,92639.0,0.29961393]
[1763406937507,2.24359337,92640.0,92639.0,0.29961393]
[1763406937709,2.24459337,92640.0,92639.0,0.29961393]
[1763406938136,2.24159337,92640.0,92639.0,0.29961393]
[1763406938428,2.24459337,92640.0,92639.0,0.29961393]
[1763406939251,2.24659337,92640.0,92639.0,0.29961393]
[1763406940331,2.24159337,92640.0,92639.0,0.29961393]
[1763406940531,2.24359337,92640.0,92639.0,0.29961393]
[1763406940744,2.24459337,92640.0,92639.0,0.29961393]
[1763406940946,2.24259337,92640.0,92639.0,0.29961393]
[1763406941152,2.24359337,92640.0,92639.0,0.29961393]
[1763406941509,2.24159337,92640.0,92639.0,0.29961393]
[1763406941708,2.24359337,92640.0,92639.0,0.29961393]
[1763406942477,2.24459337,92640.0,92639.0,0.29961393]
[1763406943742,2.24459337,92640.0,92639.0,0.15320985]
[1763406943892,2.32233382,92640.0,92639.0,0.15320985]
[1763406944311,2.28876854,92640.0,92639.0,0.14363424]
[1763406944506,2.30946747,92640.0,92639.0,0.14363424]
[1763406944708,2.38787384,92640.0,92639.0,0.11639621]
[1763406945438,2.28969915,92640.0,92639.0,0.11639621]
[1763406945653,2.29169915,92640.0,92639.0,0.11639621]
[1763406946284,2.28969915,92640.0,92639.0,0.11639621]
[1763406946457,2.28501211,92640.0,92639.0,0.11639621]
[1763406946897,2.28801211,92640.0,92639.0,0.10912145]
[1763406947098,2.29001211,92640.0,92639.0,0.10912145]
[1763406947299,2.29001211,92640.0,92639.0,0.09548127]
[1763406947501,2.29269915,92640.0,92639.0,0.09548127]
[1763406947662,2.29269915,92640.0,92639.0,0.08184109]
[1763406948063,2.29001211,92640.0,92639.0,0.08184109]
[1763406948286,2.38706982,92640.0,92639.0,0.07684109]
[1763406948484,2.34366049,92640.0,92639.0,0.07684109]
[1763406949023,2.38707923,92640.0,92639.0,0.07684109]
[1763406949572,2.29001211,92640.0,92639.0,0.07684109]
[1763406949827,2.28801211,92640.0,92639.0,0.07684109]
[1763406950235,2.28701211,92640.0,92639.0,0.07684109]
[1763406950457,2.28701211,92640.0,92628.0,0.06854339]
[1763406950458,0.36641874,92635.0,92628.0,0.06854339]
[1763406950670,0.36641874,92633.0,92628.0,0.06854339]
[1763406950872,0.36641874,92629.0,92628.0,0.06854339]
[1763406951077,2.28469211,92629.0,92628.0,0.06854339]
[1763406951645,2.28473609,92629.0,92628.0,0.06854339]
[1763406952478,2.28673609,92629.0,92628.0,0.06854339]
[1763406952640,2.33718597,92629.0,92628.0,0.06854339]
[1763406953066,2.34018597,92629.0,92628.0,0.06854339]
[1763406957335,2.33718597,92629.0,92628.0,0.06854339]
[1763406957538,2.33518597,92629.0,92628.0,0.06854339]
[1763406957719,2.33818597,92629.0,92628.0,0.06885872]
[1763406958119,2.33518597,92629.0,92628.0,0.06885872]
[1763406958326,2.33618597,92629.0,92628.0,0.06885872]
[1763406958731,2.38618597,92629.0,92628.0,0.06885872]
[1763406958927,2.38618597,92629.0,92577.0,0.04939]
[1763406958928,1.89801766,92616.0,92577.0,0.04939]
[1763406959294,2.22101766,92613.0,92577.0,0.04939]
[1763406959516,2.24127337,92613.0,92577.0,0.04939]
[1763406959675,2.24127337,92613.0,92589.0,0.09957]
[1763406959973,2.27128874,92613.0,92579.0,0.1700762]
[1763406960422,2.35173014,92613.0,92579.0,0.0705062]
[1763406960588,2.27428874,92613.0,92579.0,0.0705062]
[1763406960847,2.27128874,92613.0,92579.0,0.0705062]
[1763406960983,2.27697578,92613.0,92579.0,0.0705062]